fUST/lending_fUST_20250210
["ID","MTS","AMOUNT","RATE_DAILY","PERIOD"]
[352532454,1739154644066,-500.0,0.00011232,2]
[352532455,1739154644076,-500.0,0.00011232,2]
[352532456,1739154644087,-505.97,0.00011232,2]
[352532457,1739154644097,-500.0,0.00011232,2]
[352532458,1739154644107,-271.35650117,0.00011232,2]
[352532459,1739154644117,-690.74,0.00011232,2]
[352532460,1739154644127,-2210.83,0.00011232,2]
[352532461,1739154644136,-500.0,0.00011232,2]
[352532462,1739154644146,-500.0,0.00011232,2]
[352532463,1739154644155,-500.0,0.00011232,2]
[352532464,1739154644165,-500.0,0.00011232,2]
[352532465,1739154644175,-500.0,0.00011232,2]
[352532466,1739154644184,-2583.67,0.00011232,2]
[352532467,1739154644194,-576.54,0.00011232,2]
[352532468,1739154644203,-551.76,0.00011232,2]
[352532469,1739154644213,-500.0,0.00011232,2]
[352532470,1739154644223,-8059.04,0.00011232,2]
[352532471,1739154644232,-500.0,0.00011232,2]
[352532472,1739154644242,-3636.05,0.00011232,2]
[352532473,1739154644251,-601.16877411,0.00011232,2]
[352532474,1739154644261,-1024.25,0.00011232,2]
[352532475,1739154644270,-632.21,0.00011232,2]
[352532476,1739154644279,-702.14,0.00011232,2]
[352532477,1739154644289,-3137.58,0.00011232,2]
[352532478,1739154644299,-500.0,0.00011232,2]
[352532479,1739154644308,-151.0,0.000113,2]
[352532480,1739154644319,-164.16606977,0.00011315,2]
[352532481,1739154644328,-1145.04976917,0.00011364,2]
[352532482,1739154644338,-191.39125139,0.00011368,2]
[352532483,1739154644347,-500.0,0.00011368,2]
[352532484,1739154644356,-500.0,0.00011368,2]
[352532485,1739154644366,-531.89523454,0.00011368,2]
[352532486,1739154644375,-604.43848031,0.00011368,2]
[352532487,1739154644384,-500.0,0.00011369,2]
[352532488,1739154644394,-500.0,0.00011369,2]
[352532489,1739154644403,-500.0,0.00011369,2]
[352532490,1739154644413,-685.51,0.00011369,2]
[352532491,1739154644422,-500.0,0.00011369,2]
[352532492,1739154644432,-500.0,0.00011369,2]
[352532493,1739154644441,-500.0,0.00011369,2]
[352532494,1739154644450,-500.0,0.00011369,2]
[352532495,1739154644459,-500.0,0.00011369,2]
[352532496,1739154644469,-500.0,0.00011369,2]
[352532497,1739154644478,-846.96,0.00011369,2]
[352532498,1739154644487,-374.74948153,0.00011369,2]
[352532499,1739154644497,-500.0,0.00011369,2]
[352532500,1739154644506,-500.0,0.00011369,2]
[352532501,1739154644516,-500.0,0.00011369,2]
[352532502,1739154644526,-500.0,0.00011369,2]
[352532503,1739154644535,-500.0,0.00011369,2]
[352532504,1739154644544,-496.08634618,0.00011369,2]
[352532505,1739154644554,-500.0,0.00011369,2]
[352532506,1739154644564,-500.0,0.00011369,2]
[352532507,1739154644574,-500.0,0.00011369,2]
[352532508,1739154644583,-500.0,0.00011369,2]
[352532509,1739154644592,-500.0,0.00011369,2]
[352532510,1739154644602,-500.0,0.00011369,2]
[352532511,1739154644611,-1365.72,0.00011369,2]
[352532512,1739154644621,-500.0,0.00011369,2]
[352532513,1739154644630,-500.0,0.00011369,2]
[352532514,1739154644639,-519.25573293,0.00011369,2]
[352532515,1739154644649,-500.0,0.00011369,2]
[352532516,1739154644659,-500.0,0.00011369,2]
[352532517,1739154644668,-500.0,0.00011369,2]
[352532518,1739154644678,-500.0,0.00011369,2]
[352532519,1739154644687,-500.0,0.00011369,2]
[352532520,1739154644778,-2711.4,0.00011369,2]
[352532521,1739154644788,-1497.47,0.00011369,2]
[352532522,1739154644797,-2933.5,0.00011369,2]
[352532523,1739154644806,-9450.34,0.00011369,2]
[352532524,1739154644816,-863.92,0.00011369,2]
[352532525,1739154644826,-628.18,0.00011369,2]
[352532526,1739154644835,-500.0,0.00011369,2]
[352532527,1739154644844,-500.0,0.00011369,2]
[352532528,1739154644853,-500.0,0.00011369,2]
[352532529,1739154644863,-500.0,0.00011369,2]
[352532530,1739154644872,-977.37,0.00011369,2]
[352532531,1739154644881,-500.0,0.00011369,2]
[352532532,1739154644891,-500.0,0.00011369,2]
[352532533,1739154644901,-500.0,0.00011369,2]
[352532534,1739154644911,-500.0,0.00011369,2]
[352532535,1739154644920,-500.0,0.00011369,2]
[352532536,1739154644930,-16119.43,0.00011369,2]
[352532537,1739154644940,-1230.52,0.00011369,2]
[352532538,1739154644950,-1007.98,0.00011369,2]
[352532539,1739154644959,-500.0,0.00011369,2]
[352532540,1739154644969,-1072.84,0.00011369,2]
[352532541,1739154644978,-915.56,0.00011369,2]
[352532542,1739154644987,-500.0,0.00011369,2]
[352532543,1739154644996,-190.66863686,0.00011369,2]
[352532544,1739154645005,-500.0,0.00011369,2]
[352532545,1739154645015,-500.0,0.00011369,2]
[352532546,1739154645025,-667.11,0.00011369,2]
[352532547,1739154645034,-1779.56,0.00011369,2]
[352532548,1739154645044,-265.01161138,0.00011369,2]
[352532549,1739154645058,-500.0,0.00011369,2]
[352532550,1739154645068,-1585.01,0.00011369,2]
[352532551,1739154645078,-600.36,0.00011369,2]
[352532552,1739154645087,-738.55,0.00011369,2]
[352532553,1739154645097,-500.0,0.00011369,2]
[352532554,1739154645107,-914.55,0.00011369,2]
[352532555,1739154645117,-608.73,0.00011369,2]
[352532556,1739154645128,-619.31,0.00011369,2]
[352532557,1739154645139,-242.96155482,0.00011369,2]
[352532558,1739154645149,-944.55,0.00011369,2]
[352532559,1739154645159,-500.0,0.00011369,2]
[352532560,1739154645168,-500.0,0.00011369,2]
[352532561,1739154645178,-500.0,0.00011369,2]
[352532562,1739154645188,-500.0,0.00011369,2]
[352532563,1739154645198,-500.0,0.00011369,2]
[352532564,1739154645207,-505.97,0.00011369,2]
[352532565,1739154645217,-500.0,0.00011369,2]
[352532566,1739154645226,-690.74,0.00011369,2]
[352532567,1739154645236,-2210.83,0.00011369,2]
[352532568,1739154645246,-500.0,0.00011369,2]
[352532569,1739154645255,-500.0,0.00011369,2]
[352532570,1739154645265,-500.0,0.00011369,2]
[352532571,1739154645274,-500.0,0.00011369,2]
[352532572,1739154645283,-500.0,0.00011369,2]
[352532573,1739154645293,-2583.67,0.00011369,2]
[352532574,1739154645303,-576.54,0.00011369,2]
[352532575,1739154645312,-551.76,0.00011369,2]
[352532576,1739154645324,-500.0,0.00011369,2]
[352532577,1739154645336,-8059.04,0.00011369,2]
[352532578,1739154645350,-500.0,0.00011369,2]
[352532579,1739154645360,-3636.05,0.00011369,2]
[352532580,1739154645369,-1024.25,0.00011369,2]
[352532581,1739154645379,-632.21,0.00011369,2]
[352532582,1739154645388,-702.14,0.00011369,2]
[352532583,1739154645397,-500.0,0.00011369,2]
[352532584,1739154645408,-3137.58,0.00011369,2]
[352532585,1739154645417,-151.0,0.000114,2]
[352532586,1739154645427,-151.0,0.000115,2]
[352532587,1739154645436,-500.0,0.00011506,2]
[352532588,1739154645446,-500.0,0.00011506,2]
[352532589,1739154645455,-500.0,0.00011506,2]
[352532590,1739154645465,-685.51,0.00011506,2]
[352532591,1739154645475,-500.0,0.00011506,2]
[352532592,1739154645484,-500.0,0.00011506,2]
[352532593,1739154645494,-500.0,0.00011506,2]
[352532594,1739154645503,-500.0,0.00011506,2]
[352532595,1739154645513,-500.0,0.00011506,2]
[352532596,1739154645522,-500.0,0.00011506,2]
[352532597,1739154645531,-846.96,0.00011506,2]
[352532598,1739154645541,-321.29460215,0.00011506,2]
[352532599,1739154645550,-500.0,0.00011506,2]
[352532600,1739154645559,-500.0,0.00011506,2]
[352532601,1739154645570,-500.0,0.00011506,2]
[352532602,1739154645579,-500.0,0.00011506,2]
[352532603,1739154645588,-500.0,0.00011506,2]
[352532604,1739154645597,-500.0,0.00011506,2]
[352532605,1739154645607,-500.0,0.00011506,2]
[352532606,1739154645616,-500.0,0.00011506,2]
[352532607,1739154645625,-500.0,0.00011506,2]
[352532608,1739154645634,-500.0,0.00011506,2]
[352532609,1739154645643,-1365.72,0.00011506,2]
[352532610,1739154645653,-500.0,0.00011506,2]
[352532611,1739154645662,-500.0,0.00011506,2]
[352532612,1739154645672,-500.0,0.00011506,2]
[352532613,1739154645681,-500.0,0.00011506,2]
[352532614,1739154645690,-500.0,0.00011506,2]
[352532615,1739154645699,-500.0,0.00011506,2]
[352532616,1739154645709,-500.0,0.00011506,2]
[352532617,1739154645718,-2711.4,0.00011506,2]
[352532618,1739154645727,-1497.47,0.00011506,2]
[352532619,1739154645736,-2933.5,0.00011506,2]
[352532620,1739154645745,-9450.34,0.00011506,2]
[352532621,1739154645755,-863.92,0.00011506,2]
[352532622,1739154645764,-628.18,0.00011506,2]
[352532623,1739154645773,-500.0,0.00011506,2]
[352532624,1739154645782,-500.0,0.00011506,2]
[352532625,1739154645791,-500.0,0.00011506,2]
[352532626,1739154645800,-502.54663444,0.00011506,2]
[352532627,1739154645810,-977.37,0.00011506,2]
[352532628,1739154645820,-500.0,0.00011506,2]
[352532629,1739154645829,-500.0,0.00011506,2]
[352532630,1739154645838,-500.0,0.00011506,2]
[352532631,1739154645847,-500.0,0.00011506,2]
[352532632,1739154645856,-500.0,0.00011506,2]
[352532633,1739154645865,-16119.43,0.00011506,2]
[352532634,1739154645874,-1230.52,0.00011506,2]
[352532635,1739154645883,-1007.98,0.00011506,2]
[352532636,1739154645893,-500.0,0.00011506,2]
[352532637,1739154645903,-1072.84,0.00011506,2]
[352532638,1739154645923,-915.56,0.00011506,2]
[352532639,1739154645933,-500.0,0.00011506,2]
[352532640,1739154645942,-500.0,0.00011506,2]
[352532641,1739154645951,-587.87226081,0.00011506,2]
[352532642,1739154645960,-667.11,0.00011506,2]
[352532643,1739154645969,-1779.56,0.00011506,2]
[352532644,1739154645988,-500.0,0.00011506,2]
[352532645,1739154645999,-1585.01,0.00011506,2]
[352532646,1739154646009,-600.36,0.00011506,2]
[352532647,1739154646018,-500.0,0.00011506,2]
[352532648,1739154646027,-738.55,0.00011506,2]
[352532649,1739154646038,-914.55,0.00011506,2]
[352532650,1739154646048,-608.73,0.00011506,2]
[352532651,1739154646058,-619.31,0.00011506,2]
[352532652,1739154646070,-944.55,0.00011506,2]
[352532653,1739154646080,-500.0,0.00011506,2]
[352532654,1739154646090,-500.0,0.00011506,2]
[352532655,1739154646100,-505.75463293,0.00011506,2]
[352532656,1739154646109,-500.0,0.00011506,2]
[352532657,1739154646119,-500.0,0.00011506,2]
[352532658,1739154646132,-505.97,0.00011506,2]
[352532659,1739154646141,-504.70113771,0.00011506,2]
[352532660,1739154646151,-6754.62707182,0.00011506,4]
[352532661,1739154646160,-690.74,0.00011506,2]
[352532662,1739154646169,-2210.83,0.00011506,2]
[352532663,1739154646179,-500.0,0.00011506,2]
[352532664,1739154646188,-500.0,0.00011506,2]
[352532665,1739154646197,-500.0,0.00011506,2]
[352532666,1739154646207,-264.17865557,0.00011506,2]
[352532667,1739154646217,-500.0,0.00011506,2]
[352532668,1739154646227,-2583.67,0.00011506,2]
[352532669,1739154646236,-576.54,0.00011506,2]
[352532670,1739154646246,-551.76,0.00011506,2]
[352532671,1739154646256,-500.0,0.00011506,2]
[352532672,1739154646265,-8059.04,0.00011506,2]
[352532673,1739154646275,-500.0,0.00011506,2]
[352532674,1739154646285,-3636.05,0.00011506,2]
[352532675,1739154646294,-1024.25,0.00011506,2]
[352532676,1739154646304,-632.21,0.00011506,2]
[352532677,1739154646314,-702.14,0.00011506,2]
[352532678,1739154646325,-164.16606977,0.00011543,2]
[352532679,1739154646336,-151.0,0.000116,2]
[352532680,1739154646346,-151.0,0.000116,2]
[352532681,1739154646357,-10011.48167471,0.00011614,2]
[352532682,1739154646366,-500.0,0.00011643,2]
[352532683,1739154646377,-500.0,0.00011643,2]
[352532684,1739154646387,-500.0,0.00011643,2]
[352532685,1739154646396,-685.51,0.00011643,2]
[352532686,1739154646407,-500.0,0.00011643,2]
[352532687,1739154646417,-500.0,0.00011643,2]
[352532688,1739154646427,-500.0,0.00011643,2]
[352532689,1739154646437,-500.0,0.00011643,2]
[352532690,1739154646448,-500.0,0.00011643,2]
[352532691,1739154646458,-500.0,0.00011643,2]
[352532692,1739154646468,-846.96,0.00011643,2]
[352532693,1739154646479,-500.0,0.00011643,2]
[352532694,1739154646489,-500.0,0.00011643,2]
[352532695,1739154646500,-500.0,0.00011643,2]
[352532696,1739154646510,-500.0,0.00011643,2]
[352532697,1739154646519,-500.0,0.00011643,2]
[352532698,1739154646529,-500.0,0.00011643,2]
[352532699,1739154646538,-500.0,0.00011643,2]
[352532700,1739154646548,-500.0,0.00011643,2]
[352532701,1739154646559,-500.0,0.00011643,2]
[352532702,1739154646568,-500.0,0.00011643,2]
[352532703,1739154646580,-1365.72,0.00011643,2]
[352532704,1739154646590,-500.0,0.00011643,2]
[352532705,1739154646599,-500.0,0.00011643,2]
[352532706,1739154646610,-500.0,0.00011643,2]
[352532707,1739154646619,-500.0,0.00011643,2]
[352532708,1739154646642,-500.0,0.00011643,2]
[352532709,1739154646708,-500.0,0.00011643,2]
[352532710,1739154646805,-500.0,0.00011643,2]
[352532711,1739154646898,-2711.4,0.00011643,2]
[352532712,1739154647021,-1497.47,0.00011643,2]
[352532713,1739154647123,-2933.5,0.00011643,2]
[352532714,1739154647229,-9450.34,0.00011643,2]
[352532715,1739154647348,-863.92,0.00011643,2]
[352532716,1739154647461,-628.18,0.00011643,2]
[352532717,1739154647552,-500.0,0.00011643,2]
[352532718,1739154647683,-500.0,0.00011643,2]
[352532719,1739154647751,-500.0,0.00011643,2]
[352532720,1739154647784,-977.37,0.00011643,2]
[352532721,1739154647795,-500.0,0.00011643,2]
[352532722,1739154647806,-500.0,0.00011643,2]
[352532723,1739154647924,-500.0,0.00011643,2]
[352532724,1739154647935,-500.0,0.00011643,2]
[352532725,1739154647944,-500.0,0.00011643,2]
[352532726,1739154647954,-16119.43,0.00011643,2]
[352532727,1739154647963,-1230.52,0.00011643,2]
[352532728,1739154647972,-1007.98,0.00011643,2]
[352532729,1739154647982,-500.0,0.00011643,2]
[352532730,1739154647991,-1072.84,0.00011643,2]
[352532731,1739154648001,-915.56,0.00011643,2]
[352532732,1739154648011,-500.0,0.00011643,2]
[352532733,1739154648020,-500.0,0.00011643,2]
[352532734,1739154648029,-667.11,0.00011643,2]
[352532735,1739154648040,-1779.56,0.00011643,2]
[352532736,1739154648054,-500.0,0.00011643,2]
[352532737,1739154648064,-1585.01,0.00011643,2]
[352532738,1739154648075,-600.36,0.00011643,2]
[352532739,1739154648086,-738.55,0.00011643,2]
[352532740,1739154648096,-500.0,0.00011643,2]
[352532741,1739154648106,-914.55,0.00011643,2]
[352532742,1739154648115,-608.73,0.00011643,2]
[352532743,1739154648126,-619.31,0.00011643,2]
[352532744,1739154648136,-944.55,0.00011643,2]
[352532745,1739154648146,-500.0,0.00011643,2]
[352532746,1739154648155,-500.0,0.00011643,2]
[352532747,1739154648164,-500.0,0.00011643,2]
[352532748,1739154648174,-500.0,0.00011643,2]
[352532749,1739154648184,-505.97,0.00011643,2]
[352532750,1739154648193,-690.74,0.00011643,2]
[352532751,1739154648202,-2210.83,0.00011643,2]
[352532752,1739154648212,-500.0,0.00011643,2]
[352532753,1739154648222,-500.0,0.00011643,2]
[352532754,1739154648231,-500.0,0.00011643,2]
[352532755,1739154648241,-503.78939767,0.00011643,2]
[352532756,1739154648251,-2583.67,0.00011643,2]
[352532757,1739154648260,-576.54,0.00011643,2]
[352532758,1739154648270,-551.76,0.00011643,2]
[352532759,1739154648279,-500.0,0.00011643,2]
[352532760,1739154648289,-8059.04,0.00011643,2]
[352532761,1739154648300,-500.0,0.00011643,2]
[352532762,1739154648310,-3636.05,0.00011643,2]
[352532763,1739154648319,-1024.25,0.00011643,2]
[352532764,1739154648330,-632.21,0.00011643,2]
[352532765,1739154648340,-702.14,0.00011643,2]
[352532766,1739154648351,-151.0,0.000117,2]
[352532767,1739154648361,-500.0,0.0001178,2]
[352532768,1739154648372,-500.0,0.0001178,2]
[352532769,1739154648383,-685.51,0.0001178,2]
[352532770,1739154648393,-500.0,0.0001178,2]
[352532771,1739154648405,-500.0,0.0001178,2]
[352532772,1739154648416,-500.0,0.0001178,2]
[352532773,1739154648427,-500.0,0.0001178,2]
[352532774,1739154648437,-500.0,0.0001178,2]
[352532775,1739154648449,-500.0,0.0001178,2]
[352532776,1739154648461,-846.96,0.0001178,2]
[352532777,1739154648471,-500.0,0.0001178,2]
[352532778,1739154648481,-500.0,0.0001178,2]
[352532779,1739154648492,-500.0,0.0001178,2]
[352532780,1739154648503,-472.88769513,0.0001178,2]
[352532781,1739154648513,-500.0,0.0001178,2]
[352532782,1739154648524,-500.0,0.0001178,2]
[352532783,1739154648535,-500.0,0.0001178,2]
[352532784,1739154648545,-500.0,0.0001178,2]
[352532785,1739154648555,-500.0,0.0001178,2]
[352532786,1739154648565,-500.0,0.0001178,2]
[352532787,1739154648577,-1365.72,0.0001178,2]
[352532788,1739154648587,-646.69536164,0.0001178,2]
[352532789,1739154648597,-500.0,0.0001178,2]
[352532790,1739154648609,-500.0,0.0001178,2]
[352532791,1739154648620,-323.92190154,0.0001178,2]
[352532792,1739154648631,-500.0,0.0001178,2]
[352532793,1739154648641,-500.0,0.0001178,2]
[352532794,1739154648652,-500.0,0.0001178,2]
[352532795,1739154648662,-2711.4,0.0001178,2]
[352532796,1739154648672,-1497.47,0.0001178,2]
[352532797,1739154648683,-2933.5,0.0001178,2]
[352532798,1739154648693,-9450.34,0.0001178,2]
[352532799,1739154648703,-863.92,0.0001178,2]
[352532800,1739154648713,-628.18,0.0001178,2]
[352532801,1739154648723,-500.0,0.0001178,2]
[352532802,1739154648734,-500.0,0.0001178,2]
[352532803,1739154648745,-500.0,0.0001178,2]
[352532804,1739154648755,-977.37,0.0001178,2]
[352532805,1739154648766,-500.0,0.0001178,2]
[352532806,1739154648776,-500.0,0.0001178,2]
[352532807,1739154648787,-500.0,0.0001178,2]
[352532808,1739154648797,-500.0,0.0001178,2]
[352532809,1739154648808,-500.0,0.0001178,2]
[352532810,1739154648819,-16119.43,0.0001178,2]
[352532811,1739154648832,-1230.52,0.0001178,2]
[352532812,1739154648843,-1007.98,0.0001178,2]
[352532813,1739154648853,-500.0,0.0001178,2]
[352532814,1739154648864,-1072.84,0.0001178,2]
[352532815,1739154648874,-915.56,0.0001178,2]
[352532816,1739154648885,-500.0,0.0001178,2]
[352532817,1739154648895,-500.0,0.0001178,2]
[352532818,1739154648906,-667.11,0.0001178,2]
[352532819,1739154648917,-1779.56,0.0001178,2]
[352532820,1739154648927,-500.0,0.0001178,2]
[352532821,1739154648938,-1585.01,0.0001178,2]
[352532822,1739154648948,-600.36,0.0001178,2]
[352532823,1739154648959,-738.55,0.0001178,2]
[352532824,1739154648971,-500.0,0.0001178,2]
[352532825,1739154648981,-914.55,0.0001178,2]
[352532826,1739154648992,-608.73,0.0001178,2]
[352532827,1739154649003,-619.31,0.0001178,2]
[352532828,1739154649013,-944.55,0.0001178,2]
[352532829,1739154649024,-500.0,0.0001178,2]
[352532830,1739154649035,-500.0,0.0001178,2]
[352532831,1739154649046,-500.0,0.0001178,2]
[352532832,1739154649060,-500.0,0.0001178,2]
[352532833,1739154649071,-505.97,0.0001178,2]
[352532834,1739154649085,-690.74,0.0001178,2]
[352532835,1739154649096,-2210.83,0.0001178,2]
[352532836,1739154649108,-500.0,0.0001178,2]
[352532837,1739154649119,-500.0,0.0001178,2]
[352532838,1739154649130,-500.0,0.0001178,2]
[352532839,1739154649143,-2583.67,0.0001178,2]
[352532840,1739154649154,-576.54,0.0001178,2]
[352532841,1739154649165,-551.76,0.0001178,2]
[352532842,1739154649175,-500.0,0.0001178,2]
[352532843,1739154649186,-8059.04,0.0001178,2]
[352532844,1739154649197,-500.0,0.0001178,2]
[352532845,1739154649208,-3636.05,0.0001178,2]
[352532846,1739154649219,-1024.25,0.0001178,2]
[352532847,1739154649231,-632.21,0.0001178,2]
[352532848,1739154649242,-702.14,0.0001178,2]
[352532849,1739154649252,-151.0,0.000118,2]
[352532850,1739154649262,-151.0,0.000118,2]
[352532851,1739154649273,-151.0,0.000119,2]
[352532852,1739154649283,-500.0,0.00011917,2]
[352532853,1739154649294,-685.51,0.00011917,2]
[352532854,1739154649305,-500.0,0.00011917,2]
[352532855,1739154649316,-500.0,0.00011917,2]
[352532856,1739154649330,-392.36085054,0.00011917,2]
[352532857,1739154649341,-500.0,0.00011917,2]
[352532858,1739154649352,-500.0,0.00011917,2]
[352532859,1739154649363,-500.0,0.00011917,2]
[352532860,1739154649374,-846.96,0.00011917,2]
[352532861,1739154649385,-500.0,0.00011917,2]
[352532862,1739154649397,-500.0,0.00011917,2]
[352532863,1739154649408,-500.0,0.00011917,2]
[352532864,1739154649420,-500.0,0.00011917,2]
[352532865,1739154649430,-500.0,0.00011917,2]
[352532866,1739154649441,-500.0,0.00011917,2]
[352532867,1739154649451,-500.0,0.00011917,2]
[352532868,1739154649461,-500.0,0.00011917,2]
[352532869,1739154649473,-252.56021039,0.00011917,2]
[352532870,1739154649483,-1365.72,0.00011917,2]
[352532871,1739154649494,-500.0,0.00011917,2]
[352532872,1739154649505,-344.84012792,0.00011917,2]
[352532873,1739154649515,-500.0,0.00011917,2]
[352532874,1739154649525,-440.44256999,0.00011917,2]
[352532875,1739154649536,-500.0,0.00011917,2]
[352532876,1739154649547,-2711.4,0.00011917,2]
[352532877,1739154649558,-1497.47,0.00011917,2]
[352532878,1739154649568,-2933.5,0.00011917,2]
[352532879,1739154649582,-9450.34,0.00011917,2]
[352532880,1739154649592,-863.92,0.00011917,2]
[352532881,1739154649603,-628.18,0.00011917,2]
[352532882,1739154649613,-500.0,0.00011917,2]
[352532883,1739154649624,-500.0,0.00011917,2]
[352532884,1739154649635,-500.0,0.00011917,2]
[352532885,1739154649647,-977.37,0.00011917,2]
[352532886,1739154649657,-500.0,0.00011917,2]
[352532887,1739154649668,-214.73044086,0.00011917,2]
[352532888,1739154649679,-447.48363564,0.00011917,2]
[352532889,1739154649689,-500.0,0.00011917,2]
[352532890,1739154649699,-500.0,0.00011917,2]
[352532891,1739154649709,-16119.43,0.00011917,2]
[352532892,1739154649719,-1230.52,0.00011917,2]
[352532893,1739154649730,-1007.98,0.00011917,2]
[352532894,1739154649742,-500.0,0.00011917,2]
[352532895,1739154649752,-915.56,0.00011917,2]
[352532896,1739154649762,-1072.84,0.00011917,2]
[352532897,1739154649772,-500.0,0.00011917,2]
[352532898,1739154649782,-500.0,0.00011917,2]
[352532899,1739154649792,-667.11,0.00011917,2]
[352532900,1739154649802,-1779.56,0.00011917,2]
[352532901,1739154649813,-500.0,0.00011917,2]
[352532902,1739154649826,-1585.01,0.00011917,2]
[352532903,1739154649837,-600.36,0.00011917,2]
[352532904,1739154649848,-738.55,0.00011917,2]
[352532905,1739154649859,-500.0,0.00011917,2]
[352532906,1739154649869,-914.55,0.00011917,2]
[352532907,1739154649880,-608.73,0.00011917,2]
[352532908,1739154649891,-619.31,0.00011917,2]
[352532909,1739154649901,-944.55,0.00011917,2]
[352532910,1739154649993,-500.0,0.00011917,2]
[352532911,1739154650003,-500.0,0.00011917,2]
[352532912,1739154650013,-500.0,0.00011917,2]
[352532913,1739154650023,-500.0,0.00011917,2]
[352532914,1739154650033,-505.97,0.00011917,2]
[352532915,1739154650046,-690.74,0.00011917,2]
[352532916,1739154650056,-2210.83,0.00011917,2]
[352532917,1739154650066,-500.0,0.00011917,2]
[352532918,1739154650078,-500.0,0.00011917,2]
[352532919,1739154650089,-315.35780795,0.00011917,2]
[352532920,1739154650099,-2583.67,0.00011917,2]
[352532921,1739154650108,-576.54,0.00011917,2]
[352532922,1739154650118,-551.76,0.00011917,2]
[352532923,1739154650128,-500.0,0.00011917,2]
[352532924,1739154650138,-8059.04,0.00011917,2]
[352532925,1739154650148,-398.41074034,0.00011917,2]
[352532926,1739154650158,-3636.05,0.00011917,2]
[352532927,1739154650167,-1024.25,0.00011917,2]
[352532928,1739154650177,-632.21,0.00011917,2]
[352532929,1739154650186,-702.14,0.00011917,2]
[352532930,1739154650195,-151.0,0.00012,2]
[352532931,1739154650205,-412.0,0.0001204,2]
[352532932,1739154650215,-500.0,0.00012054,2]
[352532933,1739154650225,-685.51,0.00012054,2]
[352532934,1739154650234,-500.0,0.00012054,2]
[352532935,1739154650244,-526.66,0.00012054,2]
[352532936,1739154650253,-500.0,0.00012054,2]
[352532937,1739154650263,-500.0,0.00012054,2]
[352532938,1739154650276,-500.0,0.00012054,2]
[352532939,1739154650285,-846.96,0.00012054,2]
[352532940,1739154650294,-500.0,0.00012054,2]
[352532941,1739154650303,-500.0,0.00012054,2]
[352532942,1739154650312,-500.0,0.00012054,2]
[352532943,1739154650321,-500.0,0.00012054,2]
[352532944,1739154650333,-500.0,0.00012054,2]
[352532945,1739154650343,-500.0,0.00012054,2]
[352532946,1739154650352,-500.0,0.00012054,2]
[352532947,1739154650361,-500.0,0.00012054,2]
[352532948,1739154650370,-1365.72,0.00012054,2]
[352532949,1739154650379,-500.0,0.00012054,2]
[352532950,1739154650389,-500.0,0.00012054,2]
[352532951,1739154650398,-500.0,0.00012054,2]
[352532952,1739154650407,-2711.4,0.00012054,2]
[352532953,1739154650416,-1497.47,0.00012054,2]